bitfinex/quotes_SOLUSD_20220307
["timestamp","ask_amount","ask_price","bid_price","bid_amount"]
[1646644080798,4.61817765,83.068,82.955,22.6129]
[1646644080991,121.6,83.066,82.955,22.6129]
[1646644081192,18.0898,83.04,82.955,22.6129]
[1646644081394,56.78505802,83.039,82.955,22.6129]
[1646644081592,56.78505802,83.039,82.956,50.78845475]
[1646644081799,56.78505802,83.039,82.97,14.68]
[1646644081991,56.78505802,83.039,82.971,28.6359]
[1646644083592,56.78505802,83.039,82.971,22.6129]
[1646644084593,56.78505802,83.039,82.972,121.6]
[1646644084793,56.78505802,83.039,82.971,22.6129]
[1646644085593,56.78505802,83.039,82.972,6.023]
[1646644086797,47.8256,83.067,82.974,121.6]
[1646644086996,3.28096971,83.092,82.974,121.6]
[1646644087197,3.28096971,83.102,82.976,121.6]
[1646644087396,55.41475614,83.106,82.975,103.69625475]
[1646644087397,48.8674,83.106,82.991,121.6]
[1646644087596,48.8674,83.106,82.99,14.68]
[1646644087597,48.8674,83.106,83.01,18.0675]
[1646644087799,53.59497367,83.105,83.02,14.68]
[1646644087997,53.59497367,83.105,83.021,23.2154]
[1646644088598,53.59497367,83.105,83.022,24.7694]
[1646644089200,18.07,83.1,83.022,24.7694]
[1646644093310,53.59497367,83.105,83.03,18.0632]
[1646644093507,53.59497367,83.105,83.04,14.68]
[1646644093808,53.59497367,83.105,83.041,23.4763]
[1646644094008,22.5562,83.126,83.041,23.4763]
[1646644094207,22.5562,83.126,83.042,121.6]
[1646644094607,22.5562,83.126,83.041,23.4763]
[1646644095031,49.52434467,83.125,83.041,23.4763]
[1646644095608,49.52434467,83.125,83.051,121.6]
[1646644095808,49.52434467,83.125,83.04,74.8649]
[1646644095809,49.52434467,83.125,83.06,14.68]
[1646644096013,49.52434467,83.125,83.07,14.68]
[1646644103037,49.52434467,83.125,83.053,24.254]
[1646644112649,24.4232,83.139,83.054,121.6]
[1646644113049,24.4232,83.139,83.054,148.47415475]
[1646644113649,53.39062154,83.138,83.054,148.47415475]
[1646644115651,53.39062154,83.138,83.054,166.75655475]
[1646644116654,53.39062154,83.138,83.054,180.94565193]
[1646644117352,53.39062154,83.138,83.054,59.34565193]
[1646644118553,53.39062154,83.138,83.054,180.94565193]
[1646644122158,53.39062154,83.138,83.054,59.34565193]
[1646644122460,53.39062154,83.138,83.054,180.94565193]
[1646644122760,53.39062154,83.138,83.054,59.34565193]
[1646644123869,53.39062154,83.138,83.054,180.94565193]
[1646644124060,53.39062154,83.138,83.054,59.34565193]
[1646644124262,53.39062154,83.138,83.054,180.94565193]
[1646644124661,53.39062154,83.138,83.054,59.34565193]
[1646644125264,53.39062154,83.138,83.055,121.6]
[1646644125462,3.28096971,83.155,83.071,121.6]
[1646644125663,3.28096971,83.155,83.08,14.68]
[1646644125863,6.54248997,83.158,83.081,23.2426]
[1646644126063,3.28096971,83.169,83.081,23.2426]
[1646644126266,3.28096971,83.176,83.082,39.01959718]
[1646644126563,3.28096971,83.176,83.083,135.78909718]
[1646644126564,47.27685902,83.175,83.083,135.78909718]
[1646644126764,53.81801665,83.175,83.083,14.18909718]
[1646644126966,6.54115763,83.174,83.083,14.18909718]
[1646644127167,121.6,83.173,83.083,14.18909718]
[1646644127365,6.54115763,83.174,83.082,24.8305]
[1646644127366,124.88096971,83.171,83.082,24.8305]
[1646644127566,3.28096971,83.162,83.082,24.8305]
[1646644127766,62.76154554,83.159,83.082,24.8305]
[1646644127966,6.54115763,83.158,83.082,24.8305]
[1646644132069,3.28096971,83.155,83.082,24.8305]
[1646644132269,3.28096971,83.153,83.082,24.8305]
[1646644132572,3.28096971,83.154,83.082,24.8305]
[1646644132770,3.28096971,83.155,83.082,24.8305]
[1646644132970,3.28096971,83.153,83.082,24.8305]
[1646644133370,3.28096971,83.154,83.082,24.8305]
[1646644133973,3.28096971,83.152,83.082,24.8305]
[1646644134176,3.28096971,83.154,83.082,24.8305]
[1646644134875,3.28096971,83.153,83.082,24.8305]
[1646644135276,18.0602,83.15,83.05,24.32806142]
[1646644135479,60.84940986,83.136,83.053,14.18909718]
[1646644135675,3.28096971,83.133,83.051,24.1478]
[1646644135876,3.28096971,83.129,83.051,24.1478]
[1646644136076,3.46043331,83.128,83.051,24.1478]
[1646644136292,121.6,83.126,83.051,24.1478]
[1646644136492,121.6,83.119,83.051,24.1478]
[1646644136697,121.6,83.117,83.051,24.1478]
[1646644137392,58.76796496,83.118,83.051,24.1478]
[1646644138192,121.6,83.117,83.051,24.1478]
[1646644138393,58.76796496,83.118,83.051,24.1478]
[1646644138993,58.76796496,83.118,83.032,24.4162]
[1646644139201,121.6,83.116,83.033,24.9628]
[1646644139394,121.6,83.109,83.033,24.9628]
[1646644139798,18.0677,83.11,83.033,24.9628]
[1646644140298,124.43613526,83.109,83.033,24.9628]
[1646644140497,124.43613526,83.109,83.004,18.3485]
[1646644140498,121.6,83.097,83.004,18.3485]
[1646644140697,121.6,83.097,83.005,24.9628]
[1646644140698,0.20976166,83.096,83.005,24.9628]
[1646644140902,151.35979342,83.097,83.005,24.9628]
[1646644141096,2.83613526,83.096,83.005,24.9628]
[1646644141297,2.83613526,83.095,83.005,24.9628]
[1646644141500,121.6,83.094,83.005,24.9628]
[1646644141996,2.83613526,83.093,83.005,24.9628]
[1646644142796,121.6,83.091,83.005,24.9628]
[1646644143196,121.6,83.089,83.005,24.9628]
[1646644143597,121.6,83.087,83.005,24.9628]
[1646644143796,121.6,83.085,83.005,24.9628]
[1646644143995,121.6,83.083,83.005,24.9628]
[1646644144196,121.6,83.083,82.997,18.3139]
[1646644144399,53.66363577,83.084,82.991,22.5737]
[1646644144400,0.23065597,83.078,82.991,22.5737]
[1646644144797,121.6,83.076,82.991,22.5737]
[1646644144996,0.24711641,83.075,82.96,14.68]
[1646644145297,0.24711641,83.073,82.96,14.68]
[1646644145495,18.0823,83.06,82.961,23.0528]
[1646644145698,54.25679834,83.059,82.961,23.0528]
[1646644146097,57.0929336,83.059,82.961,23.0528]
[1646644146496,29.06052036,83.058,82.961,23.0528]
[1646644146899,150.66052036,83.057,82.961,23.0528]
[1646644147099,18.0809,83.05,82.961,23.0528]
[1646644147496,121.6,83.049,82.961,23.0528]
[1646644147698,18.0809,83.05,82.961,23.0528]
[1646644148098,20.91703526,83.05,82.961,23.0528]
[1646644148297,121.6,83.049,82.961,23.0528]
[1646644148497,48.41653014,83.039,82.961,23.0528]
[1646644148698,121.6,83.037,82.961,23.0528]
[1646644148899,23.3739,83.038,82.961,23.0528]
[1646644149298,121.6,83.037,82.961,23.0528]
[1646644149900,2.83613526,83.037,82.961,23.0528]
[1646644151498,2.83613526,83.037,82.956,23.1294]
[1646644151499,131.70613526,83.037,82.956,23.1294]
[1646644152103,147.8243851,83.036,82.956,23.1294]
[1646644152301,18.0855,83.03,82.956,23.1294]
[1646644152702,26.2243851,83.035,82.956,23.1294]
[1646644152902,23.3739,83.038,82.956,23.1294]
[1646644153103,23.3739,83.038,82.961,121.6]
[1646644153302,23.3739,83.038,82.96,32.7576]
[1646644153902,2.83613526,83.055,82.96,32.7576]
[1646644154102,13.09287572,83.204,82.96,76.94619282]
[1646644154103,24.4147,83.07,82.96,76.94619282]
[1646644154302,24.4147,83.07,82.99,18.0664]
[1646644154504,24.4147,83.07,83.0,14.68]
[1646644154705,24.4147,83.07,83.001,24.9793]
[1646644154903,62.63992512,83.069,83.001,24.9793]
[1646644155304,62.63992512,83.069,83.002,121.6]
[1646644155603,62.63992512,83.069,83.001,24.9793]
[1646644156216,26.2243851,83.088,83.001,24.9793]
[1646644156408,24.4147,83.087,83.001,24.9793]
[1646644156807,24.4147,83.087,83.002,6.019]
[1646644157210,64.23729264,83.086,83.002,6.019]
[1646644157707,64.23729264,83.086,83.001,24.9793]
[1646644157907,90.46167774,83.086,83.001,24.9793]
[1646644159409,90.46167774,83.086,83.002,6.019]
[1646644160209,90.46167774,83.086,83.001,24.9793]
[1646644160810,212.06167774,83.086,83.001,24.9793]
[1646644161027,18.0743,83.08,83.001,24.9793]
[1646644161413,44.2986851,83.08,83.001,24.9793]
[1646644163112,121.6,83.079,83.001,24.9793]
[1646644163313,44.2986851,83.08,82.992,24.5871]
[1646644163314,121.6,83.069,82.992,24.5871]
[1646644163512,121.6,83.067,82.982,24.4861]
[1646644163715,126.40342897,83.067,82.982,24.4861]
[1646644164114,121.6,83.065,82.982,24.4861]
[1646644164313,121.6,83.065,82.961,24.3432]
[1646644164514,63.88245441,83.048,82.962,24.4861]
[1646644164717,145.6923,83.047,82.962,24.4861]
[1646644164918,148.52843526,83.047,82.962,24.4861]
[1646644165114,2.83613526,83.046,82.962,24.4861]
[1646644165519,145.6923,83.047,82.962,24.4861]
[1646644166119,145.6923,83.047,82.962,23.9861]
[1646644169322,2.83613526,83.046,82.962,23.9861]
[1646644169522,18.0831,83.04,82.962,23.9861]
[1646644171543,2.83613526,83.039,82.962,23.9861]
[1646644172243,147.8243851,83.046,82.962,23.9861]
[1646644172651,24.0923,83.047,82.962,23.9861]
[1646644173246,24.0923,83.047,82.963,6.023]
[1646644174048,24.0923,83.047,82.962,23.9861]
[1646644174848,18.083,83.04,82.962,23.9861]
[1646644175450,121.6,83.039,82.962,23.9861]
[1646644175649,121.6,83.038,82.962,23.9861]
[1646644175849,150.66052036,83.038,82.962,23.9861]
[1646644176049,121.6,83.036,82.962,23.9861]
[1646644176450,29.06052036,83.035,82.962,23.9861]
[1646644176650,2.83613526,83.035,82.962,23.9861]
[1646644176950,24.2892,83.037,82.962,23.9861]
[1646644177150,24.2892,83.037,82.963,6.024]
[1646644179151,147.8243851,83.036,82.963,6.024]
[1646644179351,150.66052036,83.036,82.963,6.024]
[1646644179551,29.06052036,83.035,82.963,6.024]
[1646644179751,26.2243851,83.035,82.963,6.024]
[1646644179952,26.2243851,83.034,82.963,6.024]
[1646644180953,63.88245441,83.048,82.963,6.024]
[1646644182455,24.9817,83.047,82.963,6.024]
[1646644183057,2.83613526,83.046,82.963,6.024]
[1646644183456,26.2243851,83.045,82.963,6.024]
[1646644183755,2.83613526,83.044,82.963,6.024]
[1646644183956,18.0833,83.04,82.963,6.024]
[1646644184157,5.55915216,83.038,82.963,6.024]
[1646644184559,2.83613526,83.037,82.963,6.024]
[1646644184757,0.17200131,83.035,82.963,6.024]
[1646644185161,2.83613526,83.034,82.963,6.024]
[1646644185360,29.06052036,83.034,82.963,6.024]
[1646644185559,147.8243851,83.033,82.952,23.844]
[1646644185764,150.66052036,83.033,82.952,23.844]
[1646644185960,121.6,83.031,82.952,23.844]
[1646644186162,121.6,83.019,82.952,23.844]
[1646644186460,121.6,83.017,82.952,23.844]
[1646644187061,54.00699734,83.018,82.952,23.844]
[1646644187262,18.0895,83.01,82.952,23.844]
[1646644187462,54.00699734,83.018,82.952,23.844]
[1646644187663,24.2321,83.017,82.952,23.844]
[1646644188062,54.00699734,83.018,82.952,23.844]
[1646644188264,2.83613526,83.046,82.953,121.6]
[1646644188463,48.7092,83.073,82.953,23.9949903]
[1646644188663,2.83613526,83.06,82.953,23.9949903]
[1646644188863,24.2321,83.059,82.953,23.9949903]
[1646644189063,24.2321,83.059,82.952,23.844]
[1646644189266,26.2243851,83.059,82.953,121.6]
[1646644189466,26.2243851,83.059,82.953,145.5949903]
[1646644189667,26.2243851,83.076,82.955,121.6]
[1646644189868,3.28096971,83.09,82.961,121.6]
[1646644190066,3.28096971,83.089,82.971,121.6]
[1646644190266,57.70732925,83.091,82.971,121.6]
[1646644190570,6.54945286,83.09,82.991,121.6]
[1646644190766,6.54945286,83.09,83.0,14.68]
[1646644190968,57.70732925,83.091,83.01,14.68]
[1646644191266,57.70732925,83.091,83.011,23.305]
[1646644191674,1.6291134,83.089,83.011,23.305]
[1646644192166,57.70732925,83.091,83.011,23.305]
[1646644192167,1.6291134,83.088,83.011,23.305]
[1646644192768,1.6291134,83.087,83.011,23.305]
[1646644193368,1.6291134,83.085,83.011,23.305]
[1646644193868,1.6291134,83.084,83.011,23.305]
[1646644194468,1.6291134,83.089,83.011,23.305]
[1646644195269,1.6291134,83.09,83.011,23.305]
[1646644195468,121.6,83.09,83.011,23.305]
[1646644195679,1.6291134,83.087,83.011,23.305]
[1646644195971,1.6291134,83.082,83.011,23.305]
[1646644196369,121.6,83.08,83.011,23.305]
[1646644196570,18.0767,83.07,83.011,23.305]
[1646644196771,121.6,83.069,83.011,23.305]
[1646644196971,1.6291134,83.067,83.011,23.305]
[1646644197170,54.991794,83.066,83.011,23.305]
[1646644197571,121.6,83.059,82.992,23.5445]
[1646644197973,123.2291134,83.057,82.992,23.5445]
[1646644198474,1.6291134,83.052,82.992,23.5445]
[1646644198887,18.0813,83.05,82.992,23.5445]
[1646644200178,18.0813,83.05,82.956,22.6692]
[1646644200179,121.6,83.049,82.956,22.6692]
[1646644200379,121.6,83.039,82.957,24.7425]
[1646644200577,121.6,83.037,82.957,24.7425]
[1646644200976,26.2243851,83.036,82.957,24.7425]
[1646644201577,18.0852,83.03,82.957,24.7425]
[1646644202179,6.29436246,83.029,82.957,24.7425]
[1646644203283,62.65274197,83.038,82.957,24.7425]
[1646644203482,68.94665246,83.038,82.957,24.7425]
[1646644203795,26.2243851,83.037,82.957,24.7425]
[1646644204596,147.8243851,83.037,82.957,24.7425]
[1646644204997,26.2243851,83.036,82.957,24.7425]
[1646644206700,68.94665246,83.038,82.957,24.7425]
[1646644206898,26.2243851,83.057,82.961,121.6]
[1646644206899,1.6291134,83.05,82.961,121.6]
[1646644207098,6.29317915,83.058,82.96,14.68]
[1646644207500,1.6291134,83.057,82.96,14.68]
[1646644207699,6.29317915,83.058,82.96,14.68]
[1646644207700,24.9626,83.056,82.96,14.68]
[1646644207899,48.61878427,83.055,82.96,14.68]
[1646644208905,74.84316937,83.055,82.96,14.68]
[1646644209104,74.84316937,83.055,82.96,32.756]
[1646644209306,121.6,83.054,82.96,14.68]
[1646644209504,1.6291134,83.054,82.957,24.7425]
[1646644209706,1.6291134,83.054,82.97,14.68]
[1646644209905,1.6291134,83.068,82.971,24.8206]
[1646644210205,1.6291134,83.07,82.971,88.49076359]
[1646644210405,1.6291134,83.075,82.99,18.0675]
[1646644210606,1.6291134,83.073,82.991,48.334]
[1646644210806,1.6291134,83.071,82.991,48.334]
[1646644211008,65.33694727,83.074,82.991,48.334]
[1646644211506,6.29151408,83.073,82.991,48.334]
[1646644211705,1.6291134,83.07,82.991,48.334]
[1646644212109,19.7056134,83.07,82.991,48.334]
[1646644212306,18.0765,83.07,82.991,48.334]
[1646644212707,1.6291134,83.071,82.991,48.334]
[1646644212907,63.70783387,83.074,82.991,48.334]
[1646644214706,65.33694727,83.074,82.991,48.334]
[1646644215107,121.6,83.073,82.991,48.334]
[1646644215308,1.6291134,83.071,82.991,48.334]
[1646644215908,1.6291134,83.069,82.991,48.334]
[1646644216309,1.6291134,83.068,82.991,48.334]
[1646644216508,1.6291134,83.067,82.991,48.334]
[1646644217009,1.6291134,83.065,82.991,48.334]
[1646644217612,18.0785,83.06,82.991,48.334]
[1646644217811,1.6291134,83.053,82.95,14.68]
[1646644218013,1.6291134,83.041,82.955,47.3116]
[1646644218212,62.92031601,83.039,82.955,47.3116]
[1646644218511,1.6291134,83.035,82.955,47.3116]
[1646644218716,120.4,83.029,82.955,47.3116]
[1646644218914,0.259991,83.028,82.955,47.3116]
[1646644219314,3.09612626,83.028,82.955,47.3116]
[1646644219514,2.83613526,83.027,82.955,47.3116]
[1646644219713,2.83613526,83.027,82.93,14.68]
[1646644219714,120.7072701,83.026,82.92,14.68]
[1646644219916,120.7072701,83.026,82.921,47.0823]
[1646644220116,6.10962816,83.018,82.921,47.0823]
[1646644220315,14.68,83.01,82.921,47.0823]
[1646644220515,120.4,83.007,82.921,47.0823]
[1646644220720,0.3072701,83.006,82.921,47.0823]
[1646644221116,18.0941,82.99,82.921,47.0823]
[1646644221716,29.55481813,82.989,82.921,47.0823]
[1646644221916,120.4,82.988,82.921,47.0823]
[1646644222218,123.23613526,82.988,82.921,47.0823]
[1646644222417,2.83613526,82.987,82.921,47.0823]
[1646644222818,173.05972434,82.979,82.921,47.0823]
[1646644224020,173.05972434,82.979,82.897,77.2148]
[1646644224232,4.63643118,82.968,82.883,24.5564]
[1646644224426,14.68,82.96,82.883,24.5564]
[1646644224622,0.3072701,82.958,82.883,24.5564]
[1646644224824,4.35428875,82.958,82.871,47.3666]
[1646644225223,120.4,82.956,82.871,47.3666]
[1646644225423,120.4,82.947,82.871,47.3666]
[1646644225625,0.3072701,82.946,82.871,47.3666]
[1646644225825,0.3072701,82.944,82.871,47.3666]
[1646644226225,2.83613526,82.943,82.871,47.3666]
[1646644226428,0.3072701,82.942,82.871,47.3666]
[1646644227025,26.71868287,82.941,82.871,47.3666]
[1646644227226,18.1052,82.94,82.871,47.3666]
[1646644228325,18.1101,82.92,82.871,47.3666]
[1646644228527,61.37041561,82.919,82.871,47.3666]
[1646644229128,61.37041561,82.919,82.857,72.2884]
[1646644232529,26.71868287,82.946,82.857,72.2884]
[1646644232726,2.83613526,82.952,82.859,120.4]
[1646644232926,24.214,82.967,82.87,14.68]
[1646644233131,24.214,82.967,82.871,23.6477]
[1646644233428,62.76189864,82.966,82.872,120.4]
[1646644233626,62.76189864,82.966,82.881,120.4]
[1646644233627,59.92576338,82.966,82.881,120.4]
[1646644233827,59.92576338,82.966,82.88,14.68]
[1646644234026,59.92576338,82.966,82.881,120.4]
[1646644237128,59.92576338,82.966,82.88,14.68]
[1646644237330,86.64444625,82.966,82.88,14.68]
[1646644237730,2.83613526,82.965,82.871,23.6477]
[1646644237929,123.23613526,82.965,82.871,23.6477]
[1646644238130,120.4,82.963,82.871,23.6477]
[1646644238329,26.71868287,82.964,82.871,23.6477]
[1646644238330,29.55481813,82.964,82.871,23.6477]
[1646644238530,26.71868287,82.963,82.871,23.6477]
[1646644238830,2.83613526,82.963,82.871,23.6477]
[1646644239930,59.92576338,82.966,82.872,6.03]
[1646644240131,59.92576338,82.966,82.88,18.0936]
[1646644240333,2.83613526,82.983,82.891,120.4]
[1646644240632,4.67027012,83.027,82.893,120.4]
[1646644240633,2.83613526,82.993,82.893,120.4]
[1646644241030,2.83613526,82.993,82.893,126.427]
[1646644241432,50.23516169,82.992,82.893,126.427]
[1646644241831,2.83613526,82.993,82.901,120.4]
[1646644242040,24.63868287,83.017,82.911,120.4]
[1646644242235,2.83613526,83.016,82.913,120.4]
[1646644242530,2.83613526,83.016,82.912,23.403]
[1646644242531,2.83613526,83.016,82.915,120.4]
[1646644242731,63.83958501,83.015,82.92,14.68]
[1646644243133,2.83613526,83.014,82.92,14.68]
[1646644243333,27.47481813,83.014,82.92,14.68]
[1646644243532,27.47481813,83.014,82.921,23.1834]
[1646644243833,24.63868287,83.013,82.921,23.1834]
[1646644244037,24.63868287,83.013,82.922,6.026]
[1646644244232,27.47481813,83.013,82.923,23.403]
[1646644244836,27.47481813,83.013,82.924,6.026]
[1646644245058,120.4,83.011,82.924,6.026]
[1646644245334,120.4,83.009,82.924,6.026]
[1646644245536,5.16413321,83.008,82.924,6.026]
[1646644245737,120.4,83.007,82.924,6.026]
[1646644245937,123.23613526,83.007,82.923,23.403]
[1646644246134,147.87481813,83.007,82.923,23.403]
[1646644246335,120.4,83.005,82.923,23.403]
[1646644246737,120.4,83.003,82.923,23.403]
[1646644247137,120.4,82.999,82.923,23.403]
[1646644247536,2.83613526,82.998,82.923,23.403]
[1646644247939,2.83613526,82.998,82.924,6.026]
[1646644248138,18.0937,82.99,82.924,6.026]
[1646644248338,120.4,82.987,82.924,6.026]
[1646644248850,2.83613526,82.986,82.924,6.026]
[1646644249239,120.4,82.979,82.924,6.026]
[1646644249639,120.4,82.977,82.924,6.026]
[1646644249840,5.29774192,82.976,82.872,6.027]
[1646644250038,120.4,82.975,82.872,6.027]
[1646644250446,123.23613526,82.975,82.872,6.027]
[1646644250645,2.83613526,82.974,82.872,6.027]
[1646644251246,120.4,82.969,82.872,6.027]
[1646644251746,5.14782698,82.967,82.872,6.027]
[1646644252245,2.83613526,82.966,82.872,6.027]
[1646644252450,120.4,82.965,82.87,18.2997]
[1646644252866,120.4,82.962,82.87,18.2997]
[1646644253266,120.4,82.959,82.87,18.2997]
[1646644254070,18.1009,82.96,82.87,18.2997]
[1646644254268,2.83613526,82.961,82.872,120.4]
[1646644254470,61.1846012,82.963,82.873,120.4]
[1646644254670,61.1846012,82.963,82.87,32.9797]
[1646644256070,61.1846012,82.963,82.87,51.0758]
[1646644256470,61.1846012,82.963,82.87,32.9797]
[1646644257470,61.1846012,82.963,82.872,6.03]
[1646644259978,61.1846012,82.963,82.873,23.2516]
[1646644260179,61.1846012,82.963,82.874,6.03]
[1646644261377,18.1006,82.96,82.874,6.03]
[1646644262179,120.4,82.959,82.873,23.2516]
[1646644262378,18.1026,82.95,82.873,23.2516]
[1646644262580,61.1846012,82.963,82.873,23.2516]
[1646644262581,120.4,82.949,82.873,23.2516]
[1646644262981,2.83613526,82.948,82.873,23.2516]
[1646644263579,18.1057,82.94,82.873,23.2516]
[1646644264980,120.4,82.939,82.873,23.2516]
[1646644265180,18.1057,82.94,82.873,23.2516]
[1646644265780,120.4,82.939,82.843,14.79300755]
[1646644265981,18.1057,82.94,82.843,14.79300755]
[1646644265982,120.4,82.937,82.844,24.81]
[1646644268082,54.87683141,82.938,82.844,24.81]
[1646644268982,54.87683141,82.938,82.845,6.031]
[1646644269381,54.87683141,82.938,82.852,17.6435]
[1646644270183,54.87683141,82.938,82.858,24.7282]
[1646644270583,54.87683141,82.938,82.862,120.4]
[1646644270784,54.87683141,82.938,82.871,120.4]
[1646644270983,1.6291134,82.974,82.871,120.4]
[1646644271182,1.6291134,82.976,82.873,120.4]
[1646644271385,1.6291134,82.981,82.875,120.4]
[1646644271583,1.6291134,82.982,82.88,14.68]
[1646644271784,1.6291134,82.982,82.88,32.7739]
[1646644271985,120.4,82.98,82.881,6.029]
[1646644272286,59.08488093,82.981,82.881,6.029]
[1646644272485,20.93223526,82.98,82.881,6.029]
[1646644272684,120.4,82.979,82.881,6.029]
[1646644272887,122.0291134,82.979,82.881,6.029]
[1646644273085,1.6291134,82.977,82.881,6.029]
[1646644273484,2.83613526,82.976,82.881,6.029]
[1646644273687,1.6291134,82.972,82.881,6.029]
[1646644273885,1.6291134,82.971,82.881,6.029]
[1646644274084,18.0982,82.97,82.88,14.68]
[1646644274285,20.93433526,82.97,82.88,14.68]
[1646644274486,20.93433526,82.97,82.876,18.3362]
[1646644274888,2.83613526,82.97,82.876,18.3362]
[1646644275492,2.83613526,82.97,82.88,14.68]
[1646644276086,1.6291134,82.973,82.88,14.68]
[1646644276286,30.94524101,82.975,82.88,14.68]
[1646644276787,26.7607759,82.974,82.88,14.68]
[1646644276987,28.3898893,82.974,82.88,14.68]
[1646644277386,28.3898893,82.973,82.88,14.68]
[1646644277586,120.4,82.969,82.88,14.68]
[1646644277887,1.6291134,82.962,82.872,24.7282]
[1646644278089,1.6291134,82.951,82.872,24.7282]
[1646644278287,120.4,82.949,82.872,24.7282]
[1646644278886,120.4,82.947,82.872,24.7282]
[1646644279086,120.4,82.939,82.872,24.7282]
[1646644279487,120.4,82.937,82.872,24.7282]
[1646644279686,120.4,82.937,82.85,6.029]
[1646644279886,29.60599512,82.968,82.85,6.029]
[1646644279887,120.4,82.935,82.85,6.029]
[1646644280288,0.1888648,82.932,82.85,6.029]
[1646644280488,1.6291134,82.932,82.85,6.029]
[1646644280691,120.4,82.929,82.85,6.029]
[1646644281688,18.1075,82.93,82.85,6.029]
[1646644282989,44.8682759,82.93,82.85,6.029]
[1646644284293,26.7607759,82.946,82.85,6.029]
[1646644284490,26.7607759,82.946,82.851,23.7848]
[1646644289594,120.4,82.939,82.851,23.7848]
[1646644289893,26.7607759,82.938,82.851,23.7848]
[1646644290093,147.1607759,82.938,82.851,23.7848]
[1646644290293,26.7607759,82.938,82.851,23.7848]
[1646644291296,18.1047,82.94,82.851,23.7848]
[1646644292699,23.4119,82.949,82.851,23.7848]
[1646644292897,23.4119,82.949,82.852,14.79300755]
[1646644293817,50.1726759,82.949,82.852,14.79300755]
[1646644294899,120.4,82.948,82.852,14.79300755]
[1646644295501,50.1726759,82.949,82.853,120.4]
[1646644295703,23.4119,82.949,82.853,120.4]
[1646644295901,23.4119,82.949,82.851,23.7848]
[1646644295902,61.36152205,82.95,82.855,120.4]
[1646644296106,61.36152205,82.95,82.871,120.4]
[1646644296301,61.36152205,82.95,82.88,32.773]
[1646644296704,61.36152205,82.95,82.881,6.03]
[1646644297202,120.4,82.949,82.881,6.03]
[1646644297403,123.23613526,82.949,82.872,48.5437]
[1646644297608,2.83613526,82.948,82.872,48.5437]
[1646644297806,149.99691116,82.948,82.872,48.5437]
[1646644298007,26.7607759,82.947,82.872,48.5437]
[1646644298205,18.106,82.94,82.872,48.5437]
[1646644298405,2.83613526,82.946,82.872,48.5437]
[1646644302109,79.46352205,82.95,82.872,48.5437]
[1646644303112,61.36152205,82.95,82.873,120.4]
[1646644303312,61.36152205,82.95,82.873,135.19300755]
[1646644303716,61.36152205,82.95,82.875,120.4]
[1646644303920,1.6291134,82.968,82.88,14.68]
[1646644304121,1.6291134,82.976,82.881,120.4]
[1646644304421,1.6291134,82.987,82.884,0.13453784]
[1646644304625,1.6291134,82.989,82.886,120.4]
[1646644304821,50.16309833,82.988,82.9,14.68]
[1646644305020,50.16309833,82.988,82.901,53.5522]
[1646644305621,2.83613526,82.987,82.901,53.5522]
[1646644305822,1.6291134,82.986,82.901,53.5522]
[1646644306021,1.6291134,82.984,82.901,53.5522]
[1646644306421,2.83613526,82.983,82.901,53.5522]
[1646644306622,27.10811236,82.983,82.901,53.5522]
[1646644306822,2.83613526,82.983,82.901,53.5522]
[1646644309347,120.4,82.979,82.901,53.5522]
[1646644309942,18.0962,82.98,82.901,53.5522]
[1646644310345,120.4,82.979,82.901,53.5522]
[1646644310542,123.23613526,82.979,82.901,53.5522]
[1646644310741,2.83613526,82.978,82.901,53.5522]